[Event "MCR rapid mládeže 2023 U16"]
[Site "Harachov, Czech Republic"]
[Date "2023.09.10"]
[Round "8.26"]
[White "Strazhnyk, Viktoriia"]
[Black "Nova, Anezka"]
[Result "0-1"]
[TimeControl "20min+5s/move"]
[WhiteElo "1392"]
[BlackElo "1382"]

1. e4 {[%clk 00:20:08]} {[%emt 00:00:02]} e6 {[%clk 00:20:06]} {[%emt
00:00:04]} 2. d4 {[%clk 00:20:09]} {[%emt 00:00:04]} d5 {[%clk 00:20:10]}
{[%emt 00:00:01]} 3. exd5 {[%clk 00:20:11]} {[%emt 00:00:02]} exd5 {[%clk
00:20:14]} 4. c4 {[%clk 00:20:12]} {[%emt 00:00:06]} Nf6 {[%clk 00:19:57]}
{[%emt 00:00:22]} 5. Nc3 {[%clk 00:20:13]} {[%emt 00:00:03]} Bb4 {[%clk
00:19:55]} {[%emt 00:00:08]} 6. Qe2+ {[%clk 00:20:05]} {[%emt 00:00:13]} Be6
{[%clk 00:19:34]} {[%emt 00:00:26]} 7. cxd5 {[%clk 00:19:57]} {[%emt 00:00:13]}
Nxd5 {[%clk 00:19:10]} {[%emt 00:00:29]} 8. Bd2 {[%clk 00:19:38]} {[%emt
00:00:23]} O-O {[%clk 00:18:28]} {[%emt 00:00:47]} 9. O-O-O {[%clk 00:18:54]}
{[%emt 00:00:48]} Nxc3 {[%clk 00:17:51]} {[%emt 00:00:44]} 10. Bxc3 {[%clk
00:18:57]} {[%emt 00:00:02]} Qg5+ {[%clk 00:16:41]} {[%emt 00:01:15]} 11. Kb1
{[%clk 00:18:19]} {[%emt 00:00:41]} Qa5 {[%clk 00:14:36]} {[%emt 00:02:11]} 12.
Bxb4 {[%clk 00:16:22]} {[%emt 00:02:03]} Qxa2+ {[%clk 00:13:52]} {[%emt
00:00:49]} 13. Kc2 {[%clk 00:14:20]} {[%emt 00:02:07]} Qb3+ {[%clk 00:13:11]}
{[%emt 00:00:44]} 14. Kc1 {[%clk 00:14:13]} {[%emt 00:00:13]} Qxb4 {[%clk
00:13:06]} {[%emt 00:00:11]} 15. Qb5 {[%clk 00:13:38]} {[%emt 00:00:39]} Qxb5
{[%clk 00:11:46]} {[%emt 00:01:26]} 16. Bxb5 {[%clk 00:13:41]} {[%emt
00:00:02]} Rd8 {[%clk 00:11:02]} {[%emt 00:00:49]} 17. Nf3 {[%clk 00:13:08]}
{[%emt 00:00:37]} a6 {[%clk 00:10:11]} {[%emt 00:00:56]} 18. Ba4 {[%clk
00:13:07]} {[%emt 00:00:06]} b5 {[%clk 00:09:03]} {[%emt 00:01:14]} 19. Bc2
{[%clk 00:13:11]} {[%emt 00:00:01]} Nc6 {[%clk 00:08:42]} {[%emt 00:00:26]} 20.
Be4 {[%clk 00:12:44]} {[%emt 00:00:31]} Bd5 {[%clk 00:08:29]} {[%emt 00:00:19]}
21. Bxd5 {[%clk 00:12:03]} {[%emt 00:00:46]} Rxd5 {[%clk 00:08:32]} {[%emt
00:00:02]} 22. Rhe1 {[%clk 00:11:51]} {[%emt 00:00:14]} Rad8 {[%clk 00:08:03]}
{[%emt 00:00:35]} 23. Re4 {[%clk 00:09:53]} {[%emt 00:02:02]} Kf8 {[%clk
00:06:56]} {[%emt 00:01:14]} 24. Rd3 {[%clk 00:09:41]} {[%emt 00:00:18]} Nb4
{[%clk 00:04:59]} {[%emt 00:02:01]} 25. Rb3 {[%clk 00:09:21]} {[%emt 00:00:23]}
a5 {[%clk 00:04:23]} {[%emt 00:00:44]} 26. Kd2 {[%clk 00:08:48]} {[%emt
00:00:32]} c5 {[%clk 00:04:04]} {[%emt 00:00:30]} 27. Kc3 {[%clk 00:08:06]}
{[%emt 00:00:40]} cxd4+ {[%clk 00:03:51]} {[%emt 00:00:25]} 28. Rxd4 {[%clk
00:07:51]} {[%emt 00:00:20]} Na2+ {[%clk 00:03:46]} {[%emt 00:00:10]} 29. Kc2
{[%clk 00:07:33]} {[%emt 00:00:18]} Rxd4 {[%clk 00:03:47]} {[%emt 00:00:08]} 30.
Nxd4 {[%clk 00:07:36]} {[%emt 00:00:03]} Rxd4 {[%clk 00:03:33]} {[%emt
00:00:19]} 31. Rxb5 {[%clk 00:07:30]} {[%emt 00:00:10]} Nb4+ {[%clk 00:03:15]}
{[%emt 00:00:23]} 32. Kc3 {[%clk 00:07:29]} {[%emt 00:00:04]} Rd5 {[%clk
00:02:53]} {[%emt 00:00:28]} 33. Rxd5 {[%clk 00:07:05]} {[%emt 00:00:31]} Nxd5+
{[%clk 00:02:56]} {[%emt 00:00:02]} 34. Kc4 {[%clk 00:07:07]} {[%emt 00:00:02]}
Nc7 {[%clk 00:02:53]} {[%emt 00:00:07]} 35. Kc5 {[%clk 00:07:09]} {[%emt
00:00:05]} a4 {[%clk 00:02:19]} {[%emt 00:00:39]} 36. Kb4 {[%clk 00:07:10]}
{[%emt 00:00:04]} Ke7 {[%clk 00:02:21]} {[%emt 00:00:03]} 37. Kxa4 {[%clk
00:07:13]} {[%emt 00:00:01]} Kd6 {[%clk 00:02:23]} {[%emt 00:00:03]} 38. Kb4
{[%clk 00:07:17]} {[%emt 00:00:01]} f5 {[%clk 00:02:10]} {[%emt 00:00:18]} 39.
Kc4 {[%clk 00:07:19]} {[%emt 00:00:03]} g5 {[%clk 00:01:25]} {[%emt 00:00:49]}
40. Kd4 {[%clk 00:07:18]} {[%emt 00:00:06]} Ne6+ {[%clk 00:01:18]} {[%emt
00:00:13]} 41. Ke3 {[%clk 00:07:14]} {[%emt 00:00:08]} Nf4 {[%clk 00:01:18]}
{[%emt 00:00:06]} 42. g3 {[%clk 00:07:10]} {[%emt 00:00:09]} Nd5+ {[%clk
00:01:17]} {[%emt 00:00:06]} 43. Kf3 {[%clk 00:07:09]} {[%emt 00:00:06]} Ke5
{[%clk 00:01:08]} {[%emt 00:00:14]} 44. h3 {[%clk 00:06:46]} {[%emt 00:00:27]}
h5 {[%clk 00:01:09]} {[%emt 00:00:03]} 45. g4 {[%clk 00:06:37]} {[%emt
00:00:15]} h4 {[%clk 00:01:03]} {[%emt 00:00:11]} 46. gxf5 {[%clk 00:06:33]}
{[%emt 00:00:09]} Kxf5 {[%clk 00:01:07]} 47. b3 {[%clk 00:06:28]} {[%emt
00:00:10]} Nf4 {[%clk 00:00:33]} {[%emt 00:00:39]} 48. b4 {[%clk 00:05:36]}
{[%emt 00:00:57]} Nd5 {[%clk 00:00:07]} {[%emt 00:00:32]} 49. b5 {[%clk
00:05:37]} {[%emt 00:00:04]} Nb6 {[%clk 00:00:09]} {[%emt 00:00:03]} 50. Ke3
{[%clk 00:05:39]} {[%emt 00:00:03]} Nd7 {[%clk 00:00:07]} {[%emt 00:00:06]} 51.
Kf3 {[%clk 00:05:36]} {[%emt 00:00:08]} Ne5+ {[%clk 00:00:09]} {[%emt
00:00:04]} 52. Ke3 {[%clk 00:05:38]} {[%emt 00:00:03]} Nc4+ {[%clk 00:00:12]}
{[%emt 00:00:02]} 53. Kf3 {[%clk 00:05:30]} {[%emt 00:00:12]} Kf6 {[%clk
00:00:07]} {[%emt 00:00:10]} 54. Kg4 {[%clk 00:05:30]} {[%emt 00:00:06]} Ne5+
{[%clk 00:00:11]} {[%emt 00:00:01]} 55. Kh5 {[%clk 00:05:28]} {[%emt 00:00:07]}
Kf5 {[%clk 00:00:11]} {[%emt 00:00:05]} 56. b6 {[%clk 00:05:26]} {[%emt
00:00:07]} Nd7 {[%clk 00:00:10]} {[%emt 00:00:05]} 57. b7 {[%clk 00:05:30]}
{[%emt 00:00:02]} Nb8 {[%clk 00:00:09]} {[%emt 00:00:06]} 58. Kh6 {[%clk
00:05:32]} {[%emt 00:00:03]} Kf4 {[%clk 00:00:07]} {[%emt 00:00:06]} 59. Kh5
{[%clk 00:05:31]} {[%emt 00:00:06]} Kf5 {[%clk 00:00:07]} {[%emt 00:00:06]} 60.
Kh6 {[%clk 00:05:32]} {[%emt 00:00:04]} g4 {[%clk 00:00:10]} {[%emt 00:00:02]}
61. hxg4+ {[%clk 00:05:30]} {[%emt 00:00:07]} Kxg4 {[%clk 00:00:14]} 62. Kg6
{[%clk 00:05:30]} {[%emt 00:00:06]} h3 {[%clk 00:00:18]} 63. Kf6 {[%clk
00:05:34]} {[%emt 00:00:01]} h2 {[%clk 00:00:22]} 64. Ke6 {[%clk 00:05:36]}
{[%emt 00:00:03]} h1=Q {[%clk 00:00:24]} {[%emt 00:00:02]} 65. Ke5 {[%clk
00:04:56]} {[%emt 00:00:45]} Qxb7 {[%clk 00:00:25]} {[%emt 00:00:04]} 66. f4
{[%clk 00:04:59]} {[%emt 00:00:02]} Qe7+ {[%clk 00:00:24]} {[%emt 00:00:05]} 67.
Kd5 {[%clk 00:05:02]} {[%emt 00:00:03]} Kxf4 {[%clk 00:00:26]} {[%emt
00:00:04]} 0-1

[Event "MCR rapid mládeže 2023 U16"]
[Site "Harachov, Czech Republic"]
[Date "2023.09.10"]
[Round "8.27"]
[White "Janouskova, Eliska"]
[Black "Stepankova, Linda"]
[Result "0-1"]
[TimeControl "20min+5s/move"]
[WhiteElo "1333"]
[BlackElo "1124"]

1. e4 {[%clk 00:20:08]} {[%emt 00:00:01]} d5 {[%clk 00:20:07]} {[%emt
00:00:03]} 2. exd5 {[%clk 00:20:05]} {[%emt 00:00:08]} Qxd5 {[%clk 00:20:10]}
{[%emt 00:00:02]} 3. Nc3 {[%clk 00:19:59]} {[%emt 00:00:11]} Qd6 {[%clk
00:20:14]} {[%emt 00:00:02]} 4. d4 {[%clk 00:19:43]} {[%emt 00:00:19]} c6
{[%clk 00:20:15]} {[%emt 00:00:04]} 5. Nf3 {[%clk 00:19:01]} {[%emt 00:00:47]}
Bg4 {[%clk 00:20:18]} {[%emt 00:00:03]} 6. Be3 {[%clk 00:18:54]} {[%emt
00:00:12]} e6 {[%clk 00:20:05]} {[%emt 00:00:18]} 7. Be2 {[%clk 00:17:46]}
{[%emt 00:01:13]} Nd7 {[%clk 00:20:04]} {[%emt 00:00:06]} 8. h3 {[%clk
00:16:45]} {[%emt 00:01:05]} Bh5 {[%clk 00:19:52]} {[%emt 00:00:18]} 9. Qd2
{[%clk 00:15:24]} {[%emt 00:01:25]} Qc7 {[%clk 00:19:51]} {[%emt 00:00:06]} 10.
O-O-O {[%clk 00:12:53]} {[%emt 00:02:36]} Ngf6 {[%clk 00:19:31]} {[%emt
00:00:26]} 11. g4 {[%clk 00:12:17]} {[%emt 00:00:40]} Bg6 {[%clk 00:19:24]}
{[%emt 00:00:13]} 12. Nh4 {[%clk 00:12:05]} {[%emt 00:00:17]} Bd6 {[%clk
00:17:26]} {[%emt 00:02:02]} 13. Nxg6 {[%clk 00:11:32]} {[%emt 00:00:38]} hxg6
{[%clk 00:17:24]} {[%emt 00:00:08]} 14. f4 {[%clk 00:10:51]} {[%emt 00:00:46]}
O-O-O {[%emt 00:01:23]} 15. Rde1 {[%clk 00:09:25]} {[%emt 00:01:29]} Rhe8
{[%clk 00:14:54]} {[%emt 00:01:18]} 16. Rhf1 {[%clk 00:09:01]} {[%emt
00:00:29]} Bb4 {[%clk 00:13:39]} {[%emt 00:01:21]} 17. a3 {[%clk 00:06:00]}
{[%emt 00:03:06]} Ne4 {[%clk 00:11:50]} {[%emt 00:01:54]} 18. Qd3 {[%clk
00:05:22]} {[%emt 00:00:44]} Bxc3 {[%clk 00:11:31]} {[%emt 00:00:23]} 19. bxc3
{[%clk 00:05:11]} {[%emt 00:00:15]} Ng3 {[%clk 00:11:04]} {[%emt 00:00:33]} 20.
Rf2 {[%clk 00:04:36]} {[%emt 00:00:40]} Nxe2+ {[%clk 00:11:01]} {[%emt
00:00:07]} 21. Rfxe2 {[%clk 00:04:40]} {[%emt 00:00:02]} f5 {[%clk 00:10:32]}
{[%emt 00:00:34]} 22. Kb2 {[%clk 00:03:10]} {[%emt 00:01:36]} Nf6 {[%clk
00:10:07]} {[%emt 00:00:29]} 23. g5 {[%clk 00:02:23]} {[%emt 00:00:51]} Ne4
{[%clk 00:08:54]} {[%emt 00:01:19]} 24. Ka2 {[%clk 00:01:31]} {[%emt 00:00:57]}
c5 {[%clk 00:08:18]} {[%emt 00:00:41]} 25. Rb1 {[%clk 00:01:03]} {[%emt
00:00:33]} c4 {[%clk 00:08:14]} {[%emt 00:00:10]} 0-1

[Event "MCR rapid mládeže 2023 U16"]
[Site "Harachov, Czech Republic"]
[Date "2023.09.10"]
[Round "8.28"]
[White "Hujova, Tess"]
[Black "Peskova, Sara"]
[Result "1-0"]
[TimeControl "20min+5s/move"]
[WhiteElo "1104"]
[BlackElo "1451"]

1. e4 {[%clk 00:20:03]} {[%emt 00:00:07]} e5 {[%clk 00:20:09]} {[%emt
00:00:02]} 2. Nf3 {[%clk 00:20:06]} {[%emt 00:00:01]} Nc6 {[%clk 00:20:10]}
{[%emt 00:00:04]} 3. d4 {[%clk 00:20:09]} {[%emt 00:00:02]} exd4 {[%clk
00:20:12]} {[%emt 00:00:02]} 4. Nxd4 {[%clk 00:20:12]} {[%emt 00:00:02]} Bc5
{[%clk 00:20:12]} {[%emt 00:00:05]} 5. Be3 {[%clk 00:20:15]} {[%emt 00:00:03]}
d6 {[%clk 00:20:06]} {[%emt 00:00:10]} 6. Nxc6 {[%clk 00:20:16]} {[%emt
00:00:04]} bxc6 {[%clk 00:19:53]} {[%emt 00:00:18]} 7. Bxc5 {[%clk 00:20:19]}
{[%emt 00:00:03]} dxc5 {[%clk 00:19:55]} {[%emt 00:00:02]} 8. Qxd8+ {[%clk
00:20:22]} {[%emt 00:00:02]} Kxd8 {[%clk 00:19:57]} {[%emt 00:00:02]} 9. Bc4
{[%clk 00:20:24]} {[%emt 00:00:03]} Be6 {[%clk 00:19:40]} {[%emt 00:00:23]} 10.
Bxe6 {[%clk 00:20:26]} {[%emt 00:00:03]} fxe6 {[%clk 00:19:43]} {[%emt
00:00:02]} 11. Nc3 {[%clk 00:20:27]} {[%emt 00:00:04]} Nf6 {[%clk 00:19:34]}
{[%emt 00:00:14]} 12. O-O-O+ {[%clk 00:20:27]} {[%emt 00:00:05]} Ke7 {[%clk
00:19:34]} {[%emt 00:00:04]} 13. f3 {[%clk 00:20:19]} {[%emt 00:00:14]} Rad8
{[%clk 00:19:18]} {[%emt 00:00:21]} 14. Na4 {[%clk 00:20:14]} {[%emt 00:00:10]}
c4 {[%clk 00:18:59]} {[%emt 00:00:24]} 15. Rd2 {[%clk 00:19:48]} {[%emt
00:00:31]} Rxd2 {[%clk 00:18:46]} {[%emt 00:00:18]} 16. Kxd2 {[%clk 00:19:50]}
{[%emt 00:00:02]} Rd8+ {[%clk 00:18:46]} {[%emt 00:00:03]} 17. Kc3 {[%clk
00:19:48]} {[%emt 00:00:08]} Nh5 {[%clk 00:18:33]} {[%emt 00:00:18]} 18. g3
{[%clk 00:19:41]} {[%emt 00:00:13]} Kd6 {[%clk 00:17:47]} {[%emt 00:00:47]} 19.
Rd1+ {[%clk 00:19:41]} {[%emt 00:00:08]} Ke7 {[%clk 00:17:48]} {[%emt
00:00:05]} 20. Rxd8 {[%clk 00:19:38]} {[%emt 00:00:08]} Kxd8 {[%clk 00:17:51]}
{[%emt 00:00:02]} 21. Kxc4 {[%clk 00:19:39]} {[%emt 00:00:04]} Kd7 {[%clk
00:17:37]} {[%emt 00:00:18]} 22. Nc5+ {[%clk 00:19:29]} {[%emt 00:00:16]} Kd6
{[%clk 00:17:40]} {[%emt 00:00:02]} 23. f4 {[%clk 00:19:29]} {[%emt 00:00:04]}
e5 {[%clk 00:17:23]} {[%emt 00:00:22]} 24. f5 {[%clk 00:19:14]} {[%emt
00:00:21]} g6 {[%clk 00:16:43]} {[%emt 00:00:45]} 25. fxg6 {[%clk 00:19:10]}
{[%emt 00:00:09]} hxg6 {[%clk 00:16:45]} {[%emt 00:00:02]} 26. Nb7+ {[%clk
00:19:07]} {[%emt 00:00:09]} Ke6 {[%clk 00:16:31]} {[%emt 00:00:17]} 27. Kc5
{[%clk 00:19:05]} {[%emt 00:00:07]} Kd7 {[%clk 00:16:15]} {[%emt 00:00:22]} 28.
Na5 {[%clk 00:18:54]} {[%emt 00:00:15]} Nf6 {[%clk 00:16:07]} {[%emt 00:00:12]}
29. Nxc6 {[%clk 00:18:29]} {[%emt 00:00:32]} Nxe4+ {[%clk 00:15:53]} {[%emt
00:00:18]} 30. Kd5 {[%clk 00:18:30]} {[%emt 00:00:04]} Nf6+ {[%clk 00:15:40]}
{[%emt 00:00:17]} 31. Kxe5 {[%clk 00:17:46]} {[%emt 00:00:51]} Ng4+ {[%clk
00:15:41]} {[%emt 00:00:03]} 32. Kf4 {[%clk 00:17:49]} {[%emt 00:00:03]} Kxc6
{[%clk 00:15:27]} {[%emt 00:00:19]} 33. Kxg4 {[%clk 00:17:52]} {[%emt
00:00:02]} a5 {[%clk 00:15:30]} {[%emt 00:00:02]} 34. Kg5 {[%clk 00:17:54]}
{[%emt 00:00:02]} Kb5 {[%clk 00:15:34]} {[%emt 00:00:02]} 35. Kxg6 {[%clk
00:17:56]} {[%emt 00:00:04]} c5 {[%clk 00:15:37]} {[%emt 00:00:01]} 36. h4
{[%clk 00:17:59]} {[%emt 00:00:02]} Kc4 {[%clk 00:15:40]} {[%emt 00:00:02]} 37.
h5 {[%clk 00:18:01]} {[%emt 00:00:02]} Kd4 {[%clk 00:15:43]} {[%emt 00:00:02]}
38. h6 {[%clk 00:18:04]} {[%emt 00:00:03]} Ke3 {[%clk 00:15:45]} {[%emt
00:00:02]} 39. h7 {[%clk 00:18:08]} {[%emt 00:00:02]} Kd2 {[%clk 00:15:46]}
{[%emt 00:00:04]} 40. h8=Q {[%clk 00:18:09]} {[%emt 00:00:04]} Kxc2 {[%clk
00:15:37]} {[%emt 00:00:12]} 41. Qc3+ {[%clk 00:18:10]} {[%emt 00:00:06]} Kd1
{[%clk 00:15:35]} {[%emt 00:00:05]} 42. Kf5 {[%clk 00:18:08]} {[%emt 00:00:09]}
Ke2 {[%clk 00:15:29]} {[%emt 00:00:10]} 43. Ke4 {[%clk 00:18:11]} {[%emt
00:00:03]} Kf2 {[%clk 00:15:29]} {[%emt 00:00:03]} 44. g4 {[%clk 00:18:10]}
{[%emt 00:00:07]} Kg2 {[%clk 00:15:26]} {[%emt 00:00:07]} 45. Qe3 {[%clk
00:18:13]} {[%emt 00:00:03]} Kh2 {[%clk 00:15:21]} {[%emt 00:00:06]} 46. Qf3
{[%clk 00:18:12]} {[%emt 00:00:11]} Kg1 {[%clk 00:15:15]} {[%emt 00:00:09]} 47.
Ke3 {[%clk 00:18:13]} {[%emt 00:00:05]} Kh2 {[%clk 00:15:13]} {[%emt 00:00:05]}
48. Kf2 {[%clk 00:18:16]} {[%emt 00:00:04]} c4 {[%clk 00:15:06]} {[%emt
00:00:13]} 49. Qg2 {[%clk 00:18:14]} {[%emt 00:00:07]} 1-0

[Event "MCR rapid mládeže 2023 U16"]
[Site "Harachov, Czech Republic"]
[Date "2023.09.10"]
[Round "8.29"]
[White "Moravec, Rene"]
[Black "Velim, Vojtech"]
[Result "0-1"]
[TimeControl "20min+5s/move"]
[WhiteElo "1165"]
[BlackElo "1799"]

1. e4 {[%clk 00:20:08]} {[%emt 00:00:02]} c6 {[%clk 00:20:09]} {[%emt
00:00:01]} 2. d4 {[%clk 00:20:10]} {[%emt 00:00:03]} d5 {[%clk 00:20:13]} 3.
Nc3 {[%clk 00:20:13]} {[%emt 00:00:03]} dxe4 {[%clk 00:20:17]} {[%emt
00:00:01]} 4. Nxe4 {[%clk 00:20:16]} {[%emt 00:00:02]} Bf5 {[%clk 00:20:20]} 5.
Ng3 {[%clk 00:20:19]} {[%emt 00:00:04]} Bg6 {[%clk 00:20:24]} 6. Nf3 {[%clk
00:20:22]} {[%emt 00:00:02]} e6 {[%clk 00:20:25]} {[%emt 00:00:04]} 7. Be2
{[%clk 00:20:26]} {[%emt 00:00:02]} Nf6 {[%clk 00:20:23]} {[%emt 00:00:06]} 8.
Be3 {[%clk 00:20:29]} {[%emt 00:00:02]} Bd6 {[%clk 00:20:23]} {[%emt 00:00:05]}
9. O-O {[%clk 00:20:23]} {[%emt 00:00:11]} Nbd7 {[%clk 00:19:59]} {[%emt
00:00:29]} 10. c3 {[%clk 00:19:22]} {[%emt 00:01:06]} Qc7 {[%clk 00:18:52]}
{[%emt 00:01:11]} 11. Nh4 {[%clk 00:18:30]} {[%emt 00:00:57]} O-O-O {[%clk
00:18:28]} {[%emt 00:00:30]} 12. b4 {[%clk 00:17:54]} {[%emt 00:00:42]} Be7
{[%clk 00:18:00]} {[%emt 00:00:32]} 13. Nf3 {[%clk 00:17:37]} {[%emt 00:00:21]}
Nd5 {[%clk 00:17:32]} {[%emt 00:00:33]} 14. Bd2 {[%clk 00:17:20]} {[%emt
00:00:23]} h5 {[%clk 00:17:13]} {[%emt 00:00:24]} 15. h4 {[%clk 00:17:06]}
{[%emt 00:00:19]} e5 {[%clk 00:16:46]} {[%emt 00:00:32]} 16. c4 {[%clk
00:15:25]} {[%emt 00:01:46]} N5f6 {[%clk 00:16:18]} {[%emt 00:00:31]} 17. d5
{[%clk 00:15:15]} {[%emt 00:00:16]} c5 {[%clk 00:15:28]} {[%emt 00:00:55]} 18.
bxc5 {[%clk 00:14:49]} {[%emt 00:00:31]} Bxc5 {[%clk 00:15:27]} {[%emt
00:00:06]} 19. Qb3 {[%clk 00:12:55]} {[%emt 00:02:00]} Ng4 {[%clk 00:13:49]}
{[%emt 00:01:42]} 20. Be3 {[%clk 00:09:21]} {[%emt 00:03:40]} Bxe3 {[%clk
00:13:36]} {[%emt 00:00:17]} 21. fxe3 {[%clk 00:09:17]} {[%emt 00:00:10]} e4
{[%clk 00:13:35]} {[%emt 00:00:05]} 22. d6 {[%clk 00:09:05]} {[%emt 00:00:17]}
Qxd6 {[%clk 00:13:04]} {[%emt 00:00:36]} 23. Rab1 {[%clk 00:07:48]} {[%emt
00:01:22]} b6 {[%clk 00:12:59]} {[%emt 00:00:10]} 24. c5 {[%clk 00:06:51]}
{[%emt 00:01:03]} Nxc5 {[%clk 00:12:19]} {[%emt 00:00:44]} 25. Rbc1 {[%clk
00:04:59]} {[%emt 00:01:57]} Qxg3 {[%clk 00:10:40]} {[%emt 00:01:44]} 26. Ba6+
{[%clk 00:04:33]} {[%emt 00:00:31]} Kb8 {[%clk 00:10:41]} {[%emt 00:00:04]} 27.
Rb1 {[%clk 00:02:16]} {[%emt 00:02:21]} exf3 {[%clk 00:10:20]} {[%emt
00:00:28]} 28. Qxb6+ {[%clk 00:02:18]} {[%emt 00:00:03]} axb6 {[%clk 00:10:22]}
{[%emt 00:00:03]} 29. Rxb6+ {[%clk 00:02:22]} {[%emt 00:00:01]} Ka7 {[%clk
00:10:26]} 0-1